bitfinex/quotes_SOLUSD_20241118
["timestamp","ask_amount","ask_price","bid_price","bid_amount"]
[1731945058979,0.09367462,244.75,244.59,10.2211]
[1731945059279,19.41842141,244.66,244.59,10.2211]
[1731945059982,19.41842141,244.62,244.59,10.2211]
[1731945060583,19.41842141,244.66,244.59,10.2211]
[1731945060885,19.41842141,244.62,244.59,10.2211]
[1731945061664,19.41842141,244.64,244.59,10.2211]
[1731945063685,19.41842141,244.66,244.59,10.2211]
[1731945063862,19.41842141,244.7,244.59,10.2211]
[1731945064060,19.41842141,244.68,244.59,29.63952141]
[1731945064284,19.41842141,244.66,244.59,10.2211]
[1731945064461,19.41842141,244.68,244.59,10.2211]
[1731945065285,19.41842141,244.68,244.59,29.63952141]
[1731945065462,19.41842141,244.7,244.59,29.63952141]
[1731945065786,19.41842141,244.68,244.59,29.63952141]
[1731945066570,19.41842141,244.66,244.59,14.3095]
[1731945066768,19.41842141,244.64,244.59,14.3095]
[1731945067075,0.34465462,244.75,244.59,14.3095]
[1731945067273,19.41842141,244.67,244.59,14.3095]
[1731945067688,19.41842141,244.69,244.59,10.2211]
[1731945067867,160.0,244.73,244.59,10.2211]
[1731945067868,19.41842141,244.67,244.59,10.2211]
[1731945068693,19.41842141,244.65,244.59,10.2211]
[1731945069363,160.0,244.72,244.59,10.2211]
[1731945069364,19.41842141,244.69,244.59,10.2211]
[1731945069568,160.0,244.72,244.63,19.41842141]
[1731945069769,19.41842141,244.73,244.63,19.41842141]
[1731945069971,19.41842141,244.69,244.59,10.2211]
[1731945070872,19.41842141,244.69,244.59,34.7518]
[1731945071272,19.41842141,244.73,244.63,19.41842141]
[1731945071682,19.41842141,244.73,244.61,19.41842141]
[1731945072201,19.41842141,244.73,244.62,21.7471]
[1731945072368,2.77542713,244.78,244.62,21.7471]
[1731945072369,19.41842141,244.71,244.62,21.7471]
[1731945072781,19.41842141,244.71,244.62,41.16552141]
[1731945072983,19.41842141,244.71,244.63,14.3073]
[1731945074472,19.41842141,244.73,244.63,34.7463]
[1731945074667,19.41842141,244.73,244.64,19.41842141]
[1731945074899,19.41842141,244.73,244.63,34.7463]
[1731945075290,19.41842141,244.71,244.63,34.7463]
[1731945075797,19.41842141,244.73,244.63,34.7463]
[1731945076604,19.41842141,244.71,244.63,14.3073]
[1731945076774,19.41842141,244.73,244.63,14.3073]
[1731945077385,19.41842141,244.73,244.63,34.7463]
[1731945078970,19.41842141,244.75,244.64,19.41842141]
[1731945080278,19.41842141,244.77,244.66,19.41842141]
[1731945081075,19.41842141,244.77,244.67,14.3049]
[1731945081272,19.41842141,244.77,244.67,34.7405]
[1731945081503,19.41842141,244.75,244.67,34.7405]
[1731945081991,2.76235397,244.85,244.69,19.41842141]
[1731945081992,19.41842141,244.8,244.69,19.41842141]
[1731945083179,19.41842141,244.8,244.7,14.3031]
[1731945083719,160.0,244.99,244.74,0.5]
[1731945083720,0.5,244.95,244.74,0.5]
[1731945084000,160.5,244.98,244.81,19.41842141]
[1731945084195,19.41842141,244.88,244.71,20.59367462]
[1731945084390,160.0,244.95,244.78,18.91178341]
[1731945084599,19.41842141,244.88,244.78,18.91178341]
[1731945084779,19.41842141,244.9,244.75,23.902374]
[1731945084978,19.41842141,244.9,244.82,19.41842141]
[1731945085209,19.41842141,244.9,244.83,14.2955]
[1731945085988,19.41842141,244.88,244.83,10.2111]
[1731945086303,19.41842141,244.86,244.8,4.0848]
[1731945086678,0.09367462,244.94,244.8,4.0848]
[1731945086907,19.41842141,244.87,244.8,4.0848]
[1731945087100,0.25098,244.91,244.81,19.41842141]
[1731945087399,0.25098,244.91,244.8,19.41842141]
[1731945087400,19.41842141,244.91,244.8,19.41842141]
[1731945087592,19.41842141,244.89,244.8,19.41842141]
[1731945087788,19.41842141,244.87,244.79,10.2128]
[1731945087987,0.56668152,245.06,244.85,19.41842141]
[1731945088198,19.41842141,244.98,244.87,19.41842141]
[1731945088498,19.41842141,244.98,244.89,19.41842141]
[1731945089200,19.41842141,244.98,244.82,0.5]
[1731945089201,19.41842141,244.98,244.88,14.2926]
[1731945090688,19.41842141,244.96,244.88,14.2926]
[1731945091422,19.41842141,244.98,244.88,14.2926]
[1731945091611,19.41842141,244.97,244.88,34.7107]
[1731945091899,19.41842141,244.99,244.91,19.41842141]
[1731945092084,19.41842141,245.01,244.92,22.6311]
[1731945092279,19.41842141,244.99,244.92,22.6311]
[1731945092482,19.41842141,245.03,244.93,19.54391141]
[1731945092708,19.41842141,245.03,244.94,34.7022]
[1731945093091,19.41842141,244.99,244.94,14.2891]
[1731945093404,19.41842141,244.96,244.94,14.2891]
[1731945093787,0.06668152,245.06,244.94,14.2891]
[1731945093987,19.41842141,244.98,244.94,14.2891]
[1731945094379,0.06668152,245.06,244.94,14.2891]
[1731945094380,12.00012905,244.99,244.94,14.2891]
[1731945094586,12.00012905,244.97,244.94,14.2891]
[1731945095010,0.06668152,245.06,244.94,14.2891]
[1731945095307,12.00012905,244.98,244.94,14.2891]
[1731945096009,0.06668152,245.06,244.94,14.2891]
[1731945096010,12.00012905,245.0,244.94,14.2891]
[1731945096879,12.00012905,244.98,244.94,14.2891]
[1731945098498,12.00012905,245.0,244.94,14.2891]
[1731945099003,12.00012905,244.96,244.94,10.2065]
[1731945099194,4.0807,245.05,244.94,10.2065]
[1731945099389,12.00012905,244.96,244.94,10.2065]
[1731945100102,12.00012905,245.04,244.94,10.2065]
[1731945100103,12.00012905,244.98,244.94,10.2065]
[1731945100511,12.00012905,245.0,244.94,10.2065]
[1731945100689,12.00012905,244.98,244.94,10.2065]
[1731945100888,12.00012905,244.96,244.94,10.2065]
[1731945101089,12.00012905,244.96,244.89,14.2919]
[1731945101593,12.00012905,244.96,244.89,34.7092]
[1731945102707,12.00012905,244.96,244.9,20.0]
[1731945102917,12.00012905,244.97,244.9,20.0]
[1731945103216,12.00012905,244.98,244.9,20.0]
[1731945103513,12.00012905,244.95,244.9,20.0]
[1731945103710,12.00012905,245.04,244.9,20.0]
[1731945103711,12.00012905,244.93,244.9,20.0]
[1731945103901,12.00012905,244.93,244.89,34.7092]
[1731945104619,12.00012905,244.95,244.89,34.7092]
[1731945104912,12.00012905,244.93,244.89,34.7092]
[1731945105097,12.00012905,244.94,244.89,14.2919]
[1731945105307,12.00012905,244.92,244.89,14.2919]
[1731945105812,12.00012905,244.9,244.89,14.2919]
[1731945105991,12.00012905,244.9,244.86,4.0839]
[1731945106192,22.9929,245.02,244.85,10.2103]
[1731945106388,12.00012905,244.91,244.85,10.2103]
[1731945106592,12.00012905,244.86,244.85,10.2103]
[1731945106798,2.98450855,244.86,244.85,10.2103]
[1731945108406,10.204,245.0,244.85,10.2103]
[1731945108596,2.84443794,245.03,244.93,3.95099068]
[1731945108804,12.00012905,244.94,244.93,3.95099068]
[1731945108991,24.0002581,244.94,244.86,6.1686]
[1731945109201,12.00012905,244.87,244.85,10.2103]
[1731945109399,12.00012905,244.87,244.79,22.0182]
[1731945109593,174.784,245.03,244.79,22.0182]
[1731945109790,0.5,245.01,244.91,3.95192079]
[1731945109995,0.5,244.98,244.79,22.0182]
[1731945110223,24.0002581,244.8,244.73,22.0182]
[1731945110391,12.00012905,244.74,244.73,22.0182]
[1731945110592,12.00012905,244.74,244.73,36.3196]
[1731945113007,12.00012905,244.74,244.73,36.44509]
[1731945113604,12.00012905,244.74,244.73,36.94509]
[1731945113915,12.00012905,244.74,244.73,36.44509]
[1731945114216,12.00012905,244.74,244.73,36.3196]
[1731945116015,12.00012905,244.74,244.73,14.3014]
[1731945117622,12.00012905,244.74,244.73,10.2153]
[1731945118119,2.81346928,244.89,244.73,10.2153]
[1731945118322,12.00012905,244.74,244.73,10.2153]
[1731945118723,0.5,244.91,244.73,10.2153]
[1731945118724,4.0827,244.93,244.73,10.2153]
[1731945118952,12.00012905,244.74,244.73,10.2153]
[1731945119508,4.0827,244.93,244.73,10.2153]
[1731945119509,4.17637462,244.93,244.73,10.2153]
[1731945119711,12.00012905,244.74,244.73,10.2153]
[1731945119916,3.17055949,244.74,244.73,10.2153]
[1731945120222,4.17637462,244.93,244.73,10.2153]
[1731945120434,12.00012905,244.74,244.73,10.2153]
[1731945120618,9.43542622,244.94,244.73,11.05995462]
[1731945120820,12.00012905,244.92,244.75,0.12549]
[1731945121118,12.00012905,244.76,244.73,10.2153]
[1731945121417,12.00012905,244.74,244.73,10.2153]
[1731945121620,13.51812622,244.94,244.73,10.7153]
[1731945121621,12.00012905,244.76,244.73,10.7153]
[1731945121821,12.00012905,244.79,244.73,10.7153]
[1731945122021,12.00012905,244.79,244.74,0.12549]
[1731945122215,12.00012905,244.79,244.75,0.5]
[1731945122409,12.00012905,244.79,244.76,0.5]
[1731945122609,12.00012905,244.79,244.75,14.3003]
[1731945123032,12.00012905,244.79,244.76,0.5]
[1731945123235,12.00012905,244.92,244.76,0.5]
[1731945123436,12.00012905,244.81,244.77,0.12549]
[1731945124727,12.00012905,244.81,244.8,4.5849]
[1731945125028,12.00012905,244.92,244.82,0.5]
[1731945125029,12.00012905,244.84,244.82,0.5]
[1731945125223,12.00012905,244.84,244.83,0.25098]
[1731945125429,12.00012905,244.87,244.83,0.25098]
[1731945125810,12.00012905,244.87,244.83,0.75098]
[1731945126216,16.5245,245.02,244.86,0.25098]
[1731945126466,12.00012905,244.92,244.9,0.12549]
[1731945126735,12.00012905,244.91,244.88,34.7107]
[1731945127040,12.00012905,244.89,244.88,34.7107]
[1731945127614,12.00012905,244.89,244.88,14.2926]
[1731945127922,0.75,245.0,244.88,14.2926]
[1731945128124,12.00012905,244.89,244.88,14.2926]
[1731945128719,12.00012905,244.89,244.88,14.41809]
[1731945128936,12.00012905,244.9,244.88,14.41809]
[1731945129322,0.75,245.0,244.88,14.41809]
[1731945129323,12.00012905,244.92,244.91,0.5]
[1731945129723,12.00012905,244.92,244.89,0.5]
[1731945129921,12.00012905,244.9,244.88,34.7107]
[1731945130725,12.00012905,244.9,244.88,30.6271]
[1731945131552,12.00012905,244.92,244.88,30.6271]
[1731945131553,12.00012905,244.89,244.88,30.6271]
[1731945132042,12.00012905,244.89,244.88,10.209]
[1731945132725,12.00012905,244.89,244.83,34.7178]
[1731945132931,12.00012905,244.84,244.83,34.7178]
[1731945133331,12.00012905,244.84,244.83,35.2178]
[1731945133533,12.00012905,244.84,244.83,55.2178]
[1731945133847,12.00012905,244.84,244.83,80.13461715]
[1731945134016,12.00012905,244.84,244.83,80.26010715]
[1731945134221,12.00012905,244.84,244.83,79.76010715]
[1731945134521,12.00012905,244.84,244.83,79.98785143]
[1731945134717,12.00012905,244.84,244.83,80.48785143]
[1731945135022,0.75,245.0,244.83,80.48785143]
[1731945135023,12.00012905,244.86,244.85,0.5]
[1731945135229,0.75,245.0,244.87,0.5]
[1731945135230,12.00012905,244.88,244.87,0.5]
[1731945135438,12.00012905,244.88,244.87,20.5]
[1731945136141,12.00012905,244.88,244.87,0.5]
[1731945136826,12.00012905,244.88,244.87,4.5837]
[1731945137716,12.00012905,244.88,244.87,4.70919]
[1731945137917,2.09665864,244.88,244.87,4.80286462]
[1731945138143,12.00012905,244.9,244.89,0.5]
[1731945138340,12.00012905,244.9,244.89,0.62549]
[1731945138543,12.00012905,244.9,244.89,0.5]
[1731945138726,12.00012905,244.9,244.87,34.712]
[1731945138921,12.00012905,244.88,244.87,54.712]
[1731945140149,12.00012905,244.88,244.87,34.712]
[1731945140327,11.75832905,244.88,244.84,4.0842]
[1731945140527,12.00012905,244.85,244.84,4.0842]
[1731945140745,12.00012905,244.85,244.84,10.2107]
[1731945142443,12.00012905,244.92,244.85,20.0]
[1731945142626,12.00012905,244.86,244.85,20.0]
[1731945143019,12.00012905,244.87,244.86,1.0]
[1731945143342,12.00012905,244.88,244.86,1.0]
[1731945143528,12.00012905,244.88,244.86,7.6481]
[1731945143731,12.00012905,244.88,244.87,45.13908618]
[1731945144063,0.75,245.0,244.87,45.13908618]
[1731945144064,0.75,245.0,244.93,0.5]
[1731945144549,0.75,245.0,244.92,14.2903]
[1731945144923,0.75,245.0,244.92,34.7051]
[1731945145322,12.00012905,244.93,244.92,35.2051]
[1731945145521,0.75,245.0,244.92,35.2051]
[1731945145739,12.00012905,244.93,244.92,34.7051]
[1731945147339,24.0002581,244.93,244.92,34.7051]
[1731945147843,12.00012905,244.93,244.92,34.7051]
[1731945149042,12.00012905,244.93,244.92,55.2051]
[1731945149369,9.76382905,244.95,244.94,0.5]
[1731945150024,0.75,245.0,244.94,0.5]
[1731945150224,12.00012905,244.97,244.96,0.5]
[1731945150749,12.00012905,244.97,244.94,35.2022]
[1731945151045,12.00012905,244.95,244.94,35.2022]
[1731945151438,12.00012905,244.95,244.94,14.2891]
[1731945152153,12.00012905,244.95,244.94,34.7022]
[1731945154325,12.00012905,244.95,244.94,30.6196]
[1731945154537,12.00012905,244.95,244.94,31.1196]
[1731945154732,24.0002581,244.95,244.94,30.59]
[1731945154943,24.0002581,244.95,244.92,24.4977]
[1731945155151,0.75,245.0,244.92,24.4977]
[1731945155849,24.0002581,244.93,244.92,24.4977]
[1731945156071,12.00012905,244.87,244.86,22.6057]
[1731945156661,12.00012905,244.87,244.86,22.1057]
[1731945157031,12.00012905,244.87,244.86,26.6896]
[1731945157227,12.00012905,244.87,244.86,46.6094]
[1731945157534,12.00012905,244.87,244.86,56.8193]
[1731945158046,12.00012905,244.87,244.86,57.3193]
[1731945158228,12.00012905,244.88,244.86,78.2391]
[1731945158445,12.00012905,244.89,244.86,78.2391]
[1731945158841,0.75,245.0,244.89,0.5]
[1731945159057,12.00012905,244.9,244.88,0.5]
[1731945160034,12.00012905,244.9,244.89,4.5834]
[1731945160364,0.75,245.0,244.93,0.5]
[1731945160543,0.75,245.0,244.89,54.7093]
[1731945160544,12.00012905,244.95,244.9,0.5]
[1731945160739,12.00012905,244.93,244.9,0.5]
[1731945160945,12.00012905,244.93,244.92,0.5]
[1731945161146,12.00012905,244.93,244.9,0.5]
[1731945161338,12.00012905,244.93,244.92,0.5]
[1731945161536,12.00012905,244.93,244.9,1.0]
[1731945161747,0.75,245.0,244.92,1.0]
[1731945161953,12.00012905,244.95,244.94,4.0826]
[1731945162255,12.00012905,244.96,244.94,14.2891]
[1731945162960,12.00012905,244.95,244.94,14.7891]
[1731945163154,12.00012905,244.95,244.94,55.2022]
[1731945163456,12.00012905,244.95,244.94,54.7022]
[1731945163656,12.00012905,244.95,244.94,34.7022]
[1731945164061,12.00012905,244.95,244.94,20.4131]
[1731945165559,12.00012905,244.95,244.9,14.2914]
[1731945165760,12.00012905,244.91,244.9,34.7078]
[1731945166140,12.00012905,244.91,244.9,30.6246]
[1731945166861,12.00012905,244.91,244.9,10.2082]
[1731945167159,12.00012905,244.91,244.89,20.4173]
[1731945169356,12.00012905,244.91,244.84,14.2949]
[1731945169554,12.00012905,244.86,244.84,14.2949]
[1731945170255,12.00012905,244.86,244.84,10.2107]
[1731945170562,11.70702905,244.88,244.84,10.7107]
[1731945170765,12.00012905,244.86,244.85,20.0]
[1731945171674,12.00012905,244.88,244.85,20.0]
[1731945172160,12.00012905,244.88,244.85,0.5]
[1731945172348,15.8772,244.98,244.84,21.31634109]
[1731945172349,12.00012905,244.9,244.84,46.50208071]
[1731945172874,12.00012905,244.9,244.86,20.0]
[1731945173353,12.00012905,244.9,244.87,0.5]
[1731945173751,12.00012905,244.88,244.84,25.18573962]
[1731945173969,12.00012905,244.85,244.84,25.18573962]
[1731945174174,0.75,245.0,244.84,25.68573962]
[1731945174464,0.75,245.0,244.89,0.5]
[1731945174678,0.75,245.0,244.91,0.5]
[1731945174849,12.00012905,244.95,244.91,0.5]
[1731945175248,12.00012905,244.93,244.9,20.0]
[1731945176262,12.00012905,244.91,244.9,20.0]
[1731945176649,0.75,245.0,244.9,20.0]
[1731945176849,0.75,245.0,244.9,45.18573962]
[1731945176850,12.00012905,244.95,244.9,45.18573962]
[1731945177044,12.00012905,244.95,244.9,20.0]
[1731945177267,12.00012905,244.95,244.93,20.0]
[1731945177667,0.75,245.0,244.93,45.18573962]
[1731945177974,0.75,245.0,244.94,25.18573962]
[1731945177975,12.00012905,244.95,244.94,25.18573962]
[1731945178748,12.00012905,244.95,244.92,25.18573962]
[1731945179068,12.00012905,244.93,244.88,20.0]
[1731945179249,12.00012905,244.91,244.88,20.0]
[1731945179579,12.00012905,244.91,244.88,0.5]
[1731945179745,12.00012905,244.91,244.9,20.0]
[1731945180572,12.00012905,244.93,244.89,20.0]
[1731945180876,12.00012905,244.93,244.89,25.79515675]
[1731945181067,12.00012905,244.93,244.9,0.5]
[1731945181242,0.75,245.0,244.9,5.79515675]
[1731945181448,0.75,245.0,244.97,37.8791756]
[1731945181869,0.75,245.0,244.98,37.8791756]
[1731945182064,0.75,245.0,244.94,50.50556747]
[1731945182273,0.75,245.0,244.96,25.25329806]
[1731945182462,0.75,245.0,244.95,0.89239687]
[1731945182770,12.00012905,244.96,244.83,1.0]
[1731945182978,12.00012905,244.88,244.85,1.31622919]
[1731945183157,12.00012905,244.91,244.87,0.5]
[1731945183478,12.00012905,244.89,244.87,20.0]
[1731945183675,12.00012905,244.91,244.87,20.5]
[1731945183856,0.4455,245.0,244.89,20.0]
[1731945184046,12.00012905,244.94,244.9,0.81609458]
[1731945184379,12.00012905,244.92,244.89,25.79515675]
[1731945184868,12.00012905,244.96,244.91,20.0]
[1731945185079,0.4455,245.0,244.86,22.00557711]
[1731945185080,12.00012905,244.92,244.86,21.1894]
[1731945185250,12.00012905,244.9,244.87,20.0]
[1731945185571,11.82702905,244.9,244.87,20.0]
[1731945185757,0.4455,245.0,244.87,20.5]
[1731945185953,12.00012905,244.95,244.87,25.79515675]
[1731945186181,12.00012905,244.93,244.89,20.0]
[1731945186356,12.00012905,244.91,244.89,20.0]
[1731945186673,12.00012905,244.95,244.89,26.29515675]
[1731945186878,12.00012905,244.95,244.9,5.79515675]
[1731945187174,12.00012905,244.95,244.91,20.0]
[1731945187549,12.00012905,244.95,244.92,20.0]
[1731945188183,12.00012905,244.95,244.89,0.5]
[1731945189660,12.00012905,244.95,244.87,20.0]
[1731945189864,12.00012905,244.93,244.87,20.0]
[1731945190069,0.4455,245.0,244.87,25.79515675]
[1731945190070,12.00012905,244.91,244.87,25.79515675]
[1731945190376,12.00012905,244.94,244.87,26.29515675]
[1731945190575,12.00012905,244.94,244.87,27.11131445]
[1731945190783,12.00012905,244.94,244.88,0.09367462]
[1731945191076,12.00012905,244.94,244.89,20.5]
[1731945191281,12.00012905,244.94,244.89,26.29515675]
[1731945191576,12.00012905,244.96,244.89,26.29515675]
[1731945191963,12.00012905,244.96,244.91,20.0]
[1731945192864,12.00012905,244.92,244.91,50.50556747]
[1731945193577,12.00012905,244.92,244.9,29.98026747]
[1731945193755,3.90189026,244.91,244.81,6.5721]
[1731945193952,11.56992905,244.85,244.77,1560.06]
[1731945194264,12.00012905,244.79,244.77,1560.06]
[1731945194463,12.00012905,244.78,244.77,1560.06]
[1731945195162,12.50012905,244.78,244.77,1497.81992321]
[1731945195392,13.00012905,244.78,244.77,1456.32273083]
[1731945195676,12.00012905,244.78,244.77,1447.90405138]
[1731945195861,24.5002581,244.78,244.77,1447.90405138]
[1731945196059,27.33220701,244.78,244.77,1366.21103345]
[1731945196457,29.68321957,244.78,244.77,1352.14950132]
[1731945196774,24.5002581,244.78,244.77,1352.14950132]
[1731945197166,25.21942272,244.78,244.77,1335.48290132]
[1731945197359,25.34491272,244.78,244.77,1309.70500132]
[1731945198273,25.34491272,244.78,244.77,1230.8822527]
[1731945198477,25.0002581,244.78,244.77,1230.8822527]
[1731945198961,24.5002581,244.78,244.77,1230.8822527]
[1731945199486,12.50012905,244.78,244.77,1230.8822527]
[1731945199781,13.00012905,244.78,244.77,1230.8822527]
[1731945200175,13.09380367,244.78,244.77,1230.8822527]
[1731945200371,0.5,244.82,244.77,1230.8822527]
[1731945200679,12.00012905,244.78,244.77,1230.8822527]
[1731945201271,12.50012905,244.78,244.77,1168.64217591]
[1731945201470,12.00012905,244.78,244.77,1168.64217591]
[1731945201664,12.50012905,244.78,244.77,1168.64217591]
[1731945202057,12.00012905,244.78,244.77,1168.64217591]
[1731945202469,12.59380367,244.78,244.77,1168.64217591]
[1731945202878,12.00012905,244.78,244.77,1168.64217591]
[1731945204881,12.00012905,244.82,244.78,35.5192]
[1731945205065,12.00012905,244.84,244.78,35.5192]
[1731945205380,12.00012905,244.85,244.8,20.0]
[1731945205573,12.00012905,244.83,244.8,20.0]
[1731945206182,12.00012905,244.85,244.8,20.0]
[1731945206355,6.6247,244.97,244.8,20.0]
[1731945206356,19.21341424,244.84,244.8,20.0]
[1731945207770,19.21341424,244.9,244.82,0.09367462]
[1731945207974,19.21341424,244.93,244.84,20.0]
[1731945208378,19.21341424,244.93,244.85,0.81635146]
[1731945208679,19.21341424,244.91,244.85,0.81635146]
[1731945209009,19.21341424,244.91,244.82,20.0]
[1731945210876,19.21341424,244.93,244.83,19.21341424]
[1731945211075,19.21341424,244.93,244.84,20.81639484]
[1731945211268,19.21341424,244.95,244.86,20.0]
[1731945211468,0.5,244.93,244.85,0.09367462]
[1731945211771,0.5,244.97,244.77,1149.08571007]
[1731945211772,0.5,244.89,244.78,24.027864]
[1731945211982,19.21341424,244.81,244.78,24.84411413]
[1731945212176,0.5,244.78,244.77,1143.46563871]
[1731945212481,1.0,244.78,244.77,1067.39443374]
[1731945213459,1.0,244.78,244.77,22.10231794]
[1731945213677,20.71341424,244.78,244.77,11.97538333]
[1731945213865,64.90529344,244.78,244.77,11.97538333]
[1731945214067,0.5,244.63,244.48,16.348003]
[1731945214295,19.21341424,244.54,244.44,20.03061643]
[1731945214466,19.21341424,244.58,244.49,19.21341424]
[1731945214667,0.5,244.55,244.5,21.2505]
[1731945214975,19.21341424,244.54,244.5,21.2505]
[1731945215186,19.71341424,244.52,244.5,21.2505]
[1731945215986,19.71341424,244.52,244.42,23.0732]
[1731945216190,19.21341424,244.56,244.42,23.0732]
[1731945216191,0.5,244.43,244.42,16.4255]
[1731945216590,19.21341424,244.44,244.42,16.4255]
[1731945216799,19.71341424,244.44,244.42,16.4255]
[1731945216976,19.21341424,244.44,244.42,16.4255]
[1731945217290,0.5,244.43,244.42,16.4255]
[1731945217479,19.71341424,244.44,244.42,16.4255]
[1731945217682,19.71341424,244.44,244.43,20.0]
[1731945217881,1.0,244.4,244.29,34.83701424]
[1731945218090,19.21341424,244.38,244.29,34.83701424]
[1731945218273,19.21341424,244.38,244.3,0.8180964]
[1731945218468,0.5,244.44,244.31,19.21341424]
[1731945218665,19.21341424,244.42,244.33,19.39681424]
[1731945218870,19.21341424,244.42,244.34,0.81787848]
[1731945219096,19.53001424,244.42,244.34,0.81787848]
[1731945219294,19.21341424,244.4,244.34,0.81787848]
[1731945219663,19.53001424,244.4,244.34,6.24122683]
[1731945219868,19.53001424,244.4,244.35,20.0]
[1731945220306,0.3166,244.46,244.4,20.0]
[1731945220606,19.53001424,244.5,244.42,20.0]
[1731945220778,19.21341424,244.5,244.44,0.25098]
[1731945220969,19.53001424,244.5,244.44,0.25098]
[1731945221175,19.53001424,244.5,244.43,0.81774384]
[1731945221402,0.3166,244.47,244.43,0.81774384]
[1731945221774,0.3166,244.47,244.4,24.027864]
[1731945221976,0.3166,244.51,244.44,20.25098]
[1731945222175,0.3166,244.47,244.45,0.8176396]
[1731945222475,19.53001424,244.47,244.39,0.25098]
[1731945222686,19.21341424,244.56,244.41,0.12549]
[1731945222887,19.21341424,244.47,244.41,0.12549]
[1731945223593,19.21341424,244.45,244.4,0.81778733]
[1731945223794,19.21341424,244.45,244.42,0.81779764]
[1731945224101,4.90363432,244.66,244.45,23.776884]
[1731945224276,25.7343,244.74,244.45,23.776884]
[1731945224277,19.21341424,244.59,244.5,20.0]
[1731945224601,19.21341424,244.59,244.51,0.81746269]
[1731945224900,0.5,244.65,244.47,20.0]
[1731945225201,19.21341424,244.52,244.47,20.0]
[1731945225580,19.21341424,244.48,244.44,15.4322]
[1731945225795,19.21341424,244.45,244.36,15.2135]
[1731945225997,19.21341424,244.4,244.36,15.2135]
[1731945226697,19.21341424,244.38,244.36,15.2135]
[1731945226883,19.21341424,244.42,244.36,15.2135]
[1731945227082,19.21341424,244.46,244.37,19.30708886]
[1731945227295,19.21341424,244.46,244.37,20.12485941]
[1731945227895,19.21341424,244.46,244.38,20.0]
[1731945228211,19.21341424,244.39,244.36,15.2135]
[1731945228579,19.21341424,244.41,244.36,15.2135]
[1731945229300,19.21341424,244.41,244.37,20.0]
[1731945230076,19.21341424,244.41,244.38,0.21916462]
[1731945230994,19.21341424,244.43,244.38,0.21916462]
[1731945231581,19.21341424,244.43,244.38,1.03705153]
[1731945231782,19.21341424,244.45,244.39,0.12549]
[1731945232582,2.12669604,244.45,244.39,0.12549]
[1731945232789,4.0891,244.55,244.39,0.12549]
[1731945233101,19.21341424,244.46,244.39,20.25098]
[1731945233608,23.13404589,244.44,244.38,0.21916462]
[1731945233780,23.13404589,244.44,244.39,0.12549]
[1731945234613,23.13404589,244.42,244.36,15.2135]
[1731945235408,23.13404589,244.44,244.36,15.2135]
[1731945235701,23.13404589,244.44,244.37,20.0]
[1731945235904,23.13404589,244.46,244.38,0.91161763]
[1731945236091,23.13404589,244.46,244.41,0.25098]
[1731945236503,23.13404589,244.5,244.43,0.25098]
[1731945236983,23.13404589,244.52,244.45,0.25098]
[1731945237989,23.13404589,244.54,244.45,0.25098]
[1731945238394,4.5887,244.58,244.45,0.25098]
[1731945238395,23.13404589,244.52,244.45,0.25098]
[1731945239313,23.13404589,244.52,244.47,0.25098]
[1731945239882,23.13404589,244.52,244.45,20.0]
[1731945240078,23.13404589,244.52,244.46,0.25098]
[1731945240286,23.13404589,244.5,244.46,0.25098]
[1731945241407,23.13404589,244.48,244.46,0.25098]
[1731945241703,23.13404589,244.5,244.46,0.25098]
[1731945242804,23.13404589,244.51,244.46,0.25098]
[1731945243299,4.0891,244.55,244.39,20.0]
[1731945243300,23.13404589,244.47,244.39,20.0]
[1731945243502,23.13404589,244.47,244.42,24.027864]
[1731945243683,23.13404589,244.47,244.43,20.0]
[1731945243887,23.13404589,244.47,244.44,0.25098]
[1731945244083,23.13404589,244.49,244.44,0.25098]
[1731945245203,23.13404589,244.47,244.44,0.25098]
[1731945245393,23.13404589,244.45,244.38,9.3857]
[1731945245587,23.13404589,244.43,244.38,9.3857]
[1731945246609,23.13404589,244.41,244.39,20.09367462]
[1731945246789,23.13404589,244.41,244.31,10.2964]
[1731945247114,23.13404589,244.39,244.31,10.2964]
[1731945247282,23.13404589,244.39,244.31,9.7964]
[1731945247488,23.13404589,244.37,244.31,9.7964]
[1731945247703,23.13404589,244.35,244.3,23.8949]